[Event "Titled Tuesday Blitz February 22 Late 2022"]
[White "Kosakowski, Jakub"]
[Black "Csonka, Balazs"]
[WhiteFideId "1185080"]
[BlackFideId "742910"]
[WhiteElo "2476"]
[BlackElo "2404"]
[Result "1/2-1/2"]
[Round "11"]
[TimeControl "180+1"]
[Date "2022.02.22"]
[WhiteClock "0:02:19"]
[BlackClock "0:01:45"]

1. d4 {[%clk 0:03:00]}  Nf6 {[%clk 0:02:56]} 2. Nf3 {[%clk 0:03:01]}  d5 {[%clk 0:02:56]} 3. c4 {[%clk 0:03:00]}  e6 {[%clk 0:02:55]} 4. g3 {[%clk 0:03:00]}  dxc4 {[%clk 0:02:41]} 5. Bg2 {[%clk 0:03:00]}  c5 {[%clk 0:02:41]} 6. O-O {[%clk 0:02:59]}  Nc6 {[%clk 0:02:41]} 7. Qa4 {[%clk 0:02:57]}  Bd7 {[%clk 0:02:38]} 8. Qxc4 {[%clk 0:02:53]}  cxd4 {[%clk 0:02:37]} 9. Nxd4 {[%clk 0:02:54]}  Rc8 {[%clk 0:02:37]} 10. Nc3 {[%clk 0:02:45]}  Nxd4 {[%clk 0:02:37]} 11. Qxd4 {[%clk 0:02:45]}  Bc5 {[%clk 0:02:37]} 12. Qh4 {[%clk 0:02:45]}  h6 {[%clk 0:02:38]} 13. Bg5 {[%clk 0:02:34]}  O-O {[%clk 0:02:33]} 14. Bxf6 {[%clk 0:02:27]}  Qxf6 {[%clk 0:02:34]} 15. Qxf6 {[%clk 0:02:28]}  gxf6 {[%clk 0:02:35]} 16. Rad1 {[%clk 0:02:28]}  Rc7 {[%clk 0:01:59]} 17. Rd3 {[%clk 0:02:19]}  Rfc8 {[%clk 0:01:47]} 18. Rfd1 {[%clk 0:02:19]}  Be8 {[%clk 0:01:45]} 1/2-1/2


[Site "https://www.chess.com"]

[Event "Titled Tuesday Blitz February 22 Late 2022"]
[White "Leitao, Rafael"]
[Black "Vusatiuk, Vladimir"]
[WhiteFideId "2101246"]
[BlackFideId "14118610"]
[WhiteElo "2609"]
[BlackElo "2157"]
[Result "0-1"]
[Round "11"]
[TimeControl "180+1"]
[Date "2022.02.23"]
[WhiteClock "0:00:10"]
[BlackClock "0:00:04"]

1. c4 {[%clk 0:03:00]}  Nf6 {[%clk 0:02:57]} 2. Nc3 {[%clk 0:03:00]}  e6 {[%clk 0:02:57]} 3. e4 {[%clk 0:03:00]}  d5 {[%clk 0:02:58]} 4. e5 {[%clk 0:02:58]}  d4 {[%clk 0:02:50]} 5. exf6 {[%clk 0:02:56]}  dxc3 {[%clk 0:02:50]} 6. bxc3 {[%clk 0:02:56]}  Qxf6 {[%clk 0:02:50]} 7. Nf3 {[%clk 0:02:55]}  b6 {[%clk 0:02:36]} 8. d4 {[%clk 0:02:48]}  h6 {[%clk 0:02:35]} 9. Bd3 {[%clk 0:02:44]}  Bb7 {[%clk 0:02:32]} 10. O-O {[%clk 0:02:44]}  Bd6 {[%clk 0:02:30]} 11. Nd2 {[%clk 0:02:32]}  Qe7 {[%clk 0:01:46]} 12. Qh5 {[%clk 0:02:18]}  Nd7 {[%clk 0:01:42]} 13. Ne4 {[%clk 0:02:08]}  Nf6 {[%clk 0:01:00]} 14. Nxf6+ {[%clk 0:01:55]}  Qxf6 {[%clk 0:00:58]} 15. Rb1 {[%clk 0:01:38]}  c5 {[%clk 0:00:43]} 16. Be3 {[%clk 0:01:33]}  Rc8 {[%clk 0:00:43]} 17. a4 {[%clk 0:01:30]}  Ba6 {[%clk 0:00:23]} 18. a5 {[%clk 0:01:22]}  cxd4 {[%clk 0:00:23]} 19. cxd4 {[%clk 0:00:59]}  g6 {[%clk 0:00:21]} 20. Qe2 {[%clk 0:00:57]}  bxa5 {[%clk 0:00:22]} 21. c5 {[%clk 0:00:56]}  Bxd3 {[%clk 0:00:23]} 22. Qxd3 {[%clk 0:00:57]}  Bc7 {[%clk 0:00:20]} 23. Qb5+ {[%clk 0:00:57]}  Kf8 {[%clk 0:00:19]} 24. Qb7 {[%clk 0:00:55]}  Kg7 {[%clk 0:00:19]} 25. d5 {[%clk 0:00:49]}  exd5 {[%clk 0:00:16]} 26. Rfd1 {[%clk 0:00:48]}  Rhd8 {[%clk 0:00:14]} 27. Qxa7 {[%clk 0:00:21]}  d4 {[%clk 0:00:14]} 28. Bd2 {[%clk 0:00:21]}  Qe5 {[%clk 0:00:10]} 29. g3 {[%clk 0:00:20]}  Ra8 {[%clk 0:00:07]} 30. Qb7 {[%clk 0:00:20]}  Rdb8 {[%clk 0:00:06]} 31. Qf3 {[%clk 0:00:20]}  Rxb1 {[%clk 0:00:06]} 32. Rxb1 {[%clk 0:00:20]}  Rd8 {[%clk 0:00:06]} 33. Rc1 {[%clk 0:00:17]}  d3 {[%clk 0:00:05]} 34. Qe3 {[%clk 0:00:15]}  Qxe3 {[%clk 0:00:06]} 35. fxe3 {[%clk 0:00:16]}  a4 {[%clk 0:00:05]} 36. Kf2 {[%clk 0:00:16]}  Be5 {[%clk 0:00:05]} 37. Rc4 {[%clk 0:00:15]}  Ra8 {[%clk 0:00:04]} 38. Bc3 {[%clk 0:00:10]}  Bxc3 {[%clk 0:00:04]} 39. Rxc3 {[%clk 0:00:11]}  a3 {[%clk 0:00:05]} 40. Rc1 {[%clk 0:00:11]}  a2 {[%clk 0:00:03]} 41. Ra1 {[%clk 0:00:11]}  Kf6 {[%clk 0:00:03]} 42. e4 {[%clk 0:00:12]}  Ke5 {[%clk 0:00:03]} 43. Ke3 {[%clk 0:00:12]}  Ra3 {[%clk 0:00:02]} 44. h3 {[%clk 0:00:11]}  h5 {[%clk 0:00:02]} 45. h4 {[%clk 0:00:11]}  f6 {[%clk 0:00:02]} 46. Kd2 {[%clk 0:00:10]}  Kd4 {[%clk 0:00:03]} 47. c6 {[%clk 0:00:10]}  Ra7 {[%clk 0:00:02]} 48. c7 {[%clk 0:00:10]}  Rxc7 {[%clk 0:00:03]} 49. Rxa2 {[%clk 0:00:10]}  Rc2+ {[%clk 0:00:04]} 0-1


[Site "https://www.chess.com"]

[Event "Titled Tuesday Blitz February 22 Late 2022"]
[White "Levine, Joseph"]
[Black "Kostiukov, Alexandr"]
[WhiteFideId "30940346"]
[BlackFideId "14108100"]
[WhiteElo "1802"]
[BlackElo "2202"]
[Result "1-0"]
[Round "11"]
[TimeControl "180+1"]
[Date "2022.02.23"]
[WhiteClock "0:00:04"]
[BlackClock "0:00:03"]

1. e4 {[%clk 0:03:00]}  c5 {[%clk 0:02:58]} 2. Nf3 {[%clk 0:03:01]}  g6 {[%clk 0:02:59]} 3. d4 {[%clk 0:03:01]}  cxd4 {[%clk 0:02:59]} 4. Nxd4 {[%clk 0:03:01]}  Bg7 {[%clk 0:03:00]} 5. Be3 {[%clk 0:03:00]}  Nc6 {[%clk 0:03:00]} 6. Nc3 {[%clk 0:03:00]}  Nf6 {[%clk 0:02:59]} 7. Bc4 {[%clk 0:03:00]}  O-O {[%clk 0:02:58]} 8. Bb3 {[%clk 0:03:00]}  a5 {[%clk 0:02:58]} 9. O-O {[%clk 0:02:53]}  a4 {[%clk 0:02:58]} 10. Nxa4 {[%clk 0:02:54]}  Nxe4 {[%clk 0:02:58]} 11. Nb5 {[%clk 0:02:54]}  d5 {[%clk 0:02:58]} 12. Nb6 {[%clk 0:02:49]}  Ra5 {[%clk 0:02:57]} 13. Bxd5 {[%clk 0:02:30]}  Rxb5 {[%clk 0:02:41]} 14. Bxe4 {[%clk 0:02:28]}  Rxb2 {[%clk 0:02:24]} 15. Qxd8 {[%clk 0:01:57]}  Rxd8 {[%clk 0:02:15]} 16. Nxc8 {[%clk 0:01:45]}  Rxc8 {[%clk 0:02:05]} 17. Rab1 {[%clk 0:01:43]}  Ra8 {[%clk 0:01:18]} 18. Bd5 {[%clk 0:01:18]}  Nb4 {[%clk 0:01:11]} 19. Bxb7 {[%clk 0:00:33]}  Raxa2 {[%clk 0:01:08]} 20. Be4 {[%clk 0:00:28]}  f5 {[%clk 0:00:52]} 21. Bd3 {[%clk 0:00:14]}  Nxd3 {[%clk 0:00:49]} 22. cxd3 {[%clk 0:00:14]}  Bf6 {[%clk 0:00:42]} 23. Rxb2 {[%clk 0:00:14]}  Rxb2 {[%clk 0:00:43]} 24. Rd1 {[%clk 0:00:14]}  g5 {[%clk 0:00:36]} 25. g3 {[%clk 0:00:14]}  Kf7 {[%clk 0:00:33]} 26. Kg2 {[%clk 0:00:13]}  h5 {[%clk 0:00:27]} 27. h3 {[%clk 0:00:12]}  e5 {[%clk 0:00:25]} 28. Kf3 {[%clk 0:00:12]}  g4+ {[%clk 0:00:22]} 29. hxg4 {[%clk 0:00:13]}  hxg4+ {[%clk 0:00:20]} 30. Kg2 {[%clk 0:00:14]}  Rb4 {[%clk 0:00:18]} 31. Ra1 {[%clk 0:00:10]}  f4 {[%clk 0:00:17]} 32. Ra7+ {[%clk 0:00:10]}  Kg6 {[%clk 0:00:17]} 33. gxf4 {[%clk 0:00:08]}  exf4 {[%clk 0:00:18]} 34. Bd2 {[%clk 0:00:05]}  Rb5 {[%clk 0:00:16]} 35. Ra4 {[%clk 0:00:03]}  f3+ {[%clk 0:00:14]} 36. Kg3 {[%clk 0:00:03]}  Kf5 {[%clk 0:00:11]} 37. Rxg4 {[%clk 0:00:03]}  Be5+ {[%clk 0:00:12]} 38. Kxf3 {[%clk 0:00:04]}  Rb3 {[%clk 0:00:11]} 39. Re4 {[%clk 0:00:02]}  Rxd3+ {[%clk 0:00:11]} 40. Be3 {[%clk 0:00:03]}  Bf6 {[%clk 0:00:10]} 41. Ra4 {[%clk 0:00:04]}  Rd1 {[%clk 0:00:08]} 42. Ra5+ {[%clk 0:00:04]}  Ke6 {[%clk 0:00:07]} 43. Ke4 {[%clk 0:00:05]}  Be7 {[%clk 0:00:05]} 44. f4 {[%clk 0:00:05]}  Re1 {[%clk 0:00:05]} 45. Ra6+ {[%clk 0:00:05]}  Kd7 {[%clk 0:00:05]} 46. Kf3 {[%clk 0:00:04]}  Rf1+ {[%clk 0:00:05]} 47. Ke2 {[%clk 0:00:04]}  Rh1 {[%clk 0:00:06]} 48. Kd3 {[%clk 0:00:04]}  Bd6 {[%clk 0:00:06]} 49. Ra2 {[%clk 0:00:02]}  Rh3 {[%clk 0:00:06]} 50. Ke4 {[%clk 0:00:02]}  Rh4 {[%clk 0:00:06]} 51. Re2 {[%clk 0:00:02]}  Bxf4 {[%clk 0:00:04]} 52. Bxf4 {[%clk 0:00:03]}  Kc6 {[%clk 0:00:04]} 53. Rd2 {[%clk 0:00:04]}  Kb5 {[%clk 0:00:04]} 54. Rd4 {[%clk 0:00:03]}  Rh5 {[%clk 0:00:04]} 55. Kd3 {[%clk 0:00:03]}  Rh3+ {[%clk 0:00:04]} 56. Be3 {[%clk 0:00:04]}  Rh5 {[%clk 0:00:04]} 57. Rc4 {[%clk 0:00:04]}  Rd5+ {[%clk 0:00:04]} 58. Bd4 {[%clk 0:00:03]}  Rh5 {[%clk 0:00:04]} 59. Rc1 {[%clk 0:00:03]}  Rh3+ {[%clk 0:00:04]} 60. Be3 {[%clk 0:00:03]}  Rh5 {[%clk 0:00:04]} 61. Rb1+ {[%clk 0:00:03]}  Kc6 {[%clk 0:00:04]} 62. Rb6+ {[%clk 0:00:04]}  Kd7 {[%clk 0:00:04]} 63. Ra6 {[%clk 0:00:04]}  Rd5+ {[%clk 0:00:03]} 64. Kc4 {[%clk 0:00:03]}  Rd1 {[%clk 0:00:04]} 65. Bd4 {[%clk 0:00:03]}  Rc1+ {[%clk 0:00:04]} 66. Kd5 {[%clk 0:00:04]}  Rb1 {[%clk 0:00:03]} 67. Ra7+ {[%clk 0:00:04]}  Ke8 {[%clk 0:00:04]} 68. Ke6 {[%clk 0:00:04]}  Re1+ {[%clk 0:00:03]} 69. Be5 {[%clk 0:00:04]}  Kd8 {[%clk 0:00:03]} 70. Ra8# {[%clk 0:00:04]} 1-0


[Site "https://www.chess.com"]

[Event "Titled Tuesday Blitz February 22 Late 2022"]
[White "Maltsevskaya, Aleksandra"]
[Black "Dreev, Aleksey"]
[WhiteFideId "24174041"]
[BlackFideId "4100107"]
[WhiteElo "2283"]
[BlackElo "2636"]
[Result "0-1"]
[Round "11"]
[TimeControl "180+1"]
[Date "2022.02.22"]
[WhiteClock "0:00:01"]
[BlackClock "0:00:15"]

1. e4 {[%clk 0:03:00]}  c5 {[%clk 0:02:58]} 2. Nf3 {[%clk 0:02:58]}  Nf6 {[%clk 0:02:59]} 3. Nc3 {[%clk 0:02:58]}  d5 {[%clk 0:02:59]} 4. exd5 {[%clk 0:02:57]}  Nxd5 {[%clk 0:02:59]} 5. d4 {[%clk 0:02:58]}  Nc6 {[%clk 0:02:44]} 6. Bb5 {[%clk 0:02:51]}  e6 {[%clk 0:02:40]} 7. O-O {[%clk 0:02:48]}  a6 {[%clk 0:02:19]} 8. Bc4 {[%clk 0:02:30]}  cxd4 {[%clk 0:02:11]} 9. Nxd5 {[%clk 0:02:29]}  exd5 {[%clk 0:02:11]} 10. Bb3 {[%clk 0:02:27]}  Be7 {[%clk 0:01:57]} 11. Nxd4 {[%clk 0:02:26]}  O-O {[%clk 0:01:57]} 12. Be3 {[%clk 0:02:24]}  Bf6 {[%clk 0:01:57]} 13. c3 {[%clk 0:02:22]}  Ne5 {[%clk 0:01:52]} 14. h3 {[%clk 0:02:21]}  Nc4 {[%clk 0:01:51]} 15. Bxc4 {[%clk 0:02:12]}  dxc4 {[%clk 0:01:51]} 16. Qf3 {[%clk 0:02:09]}  Qb6 {[%clk 0:01:40]} 17. Rab1 {[%clk 0:01:03]}  Bd7 {[%clk 0:01:40]} 18. Rfd1 {[%clk 0:00:51]}  Rad8 {[%clk 0:01:38]} 19. Nf5 {[%clk 0:00:46]}  Qc6 {[%clk 0:01:32]} 20. Qxc6 {[%clk 0:00:34]}  Bxc6 {[%clk 0:01:30]} 21. Bd4 {[%clk 0:00:34]}  Be4 {[%clk 0:01:13]} 22. Bxf6 {[%clk 0:00:31]}  gxf6 {[%clk 0:01:12]} 23. Ne7+ {[%clk 0:00:27]}  Kg7 {[%clk 0:01:11]} 24. Rxd8 {[%clk 0:00:28]}  Rxd8 {[%clk 0:01:11]} 25. Re1 {[%clk 0:00:29]}  Bg6 {[%clk 0:01:02]} 26. Nxg6 {[%clk 0:00:28]}  hxg6 {[%clk 0:01:01]} 27. Re2 {[%clk 0:00:23]}  f5 {[%clk 0:00:51]} 28. g3 {[%clk 0:00:21]}  Kf6 {[%clk 0:00:50]} 29. Kg2 {[%clk 0:00:21]}  Rd3 {[%clk 0:00:47]} 30. h4 {[%clk 0:00:21]}  b5 {[%clk 0:00:46]} 31. a3 {[%clk 0:00:19]}  a5 {[%clk 0:00:40]} 32. Rc2 {[%clk 0:00:19]}  f4 {[%clk 0:00:35]} 33. gxf4 {[%clk 0:00:09]}  Kf5 {[%clk 0:00:36]} 34. Re2 {[%clk 0:00:10]}  f6 {[%clk 0:00:35]} 35. Rc2 {[%clk 0:00:02]}  Kxf4 {[%clk 0:00:34]} 36. Re2 {[%clk 0:00:03]}  Kf5 {[%clk 0:00:33]} 37. Rc2 {[%clk 0:00:03]}  Kg4 {[%clk 0:00:25]} 38. Re2 {[%clk 0:00:03]}  Kxh4 {[%clk 0:00:25]} 39. Re6 {[%clk 0:00:03]}  Kg5 {[%clk 0:00:25]} 40. a4 {[%clk 0:00:02]}  b4 {[%clk 0:00:24]} 41. Rc6 {[%clk 0:00:02]}  bxc3 {[%clk 0:00:23]} 42. bxc3 {[%clk 0:00:02]}  Rxc3 {[%clk 0:00:24]} 43. Rc5+ {[%clk 0:00:03]}  Kf4 {[%clk 0:00:24]} 44. Rxa5 {[%clk 0:00:04]}  Ra3 {[%clk 0:00:23]} 45. Ra6 {[%clk 0:00:04]}  f5 {[%clk 0:00:22]} 46. a5 {[%clk 0:00:04]}  Ke4 {[%clk 0:00:19]} 47. Rxg6 {[%clk 0:00:04]}  Rxa5 {[%clk 0:00:18]} 48. Rc6 {[%clk 0:00:05]}  Kd5 {[%clk 0:00:15]} 49. Rc8 {[%clk 0:00:05]}  Rc5 {[%clk 0:00:15]} 50. Rd8+ {[%clk 0:00:04]}  Ke4 {[%clk 0:00:15]} 51. Rd1 {[%clk 0:00:01]}  c3 {[%clk 0:00:15]} 0-1


[Site "https://www.chess.com"]

[Event "Titled Tuesday Blitz February 22 Late 2022"]
[White "Martin Barcelo, Carles"]
[Black "Karttunen, Mika"]
[WhiteFideId "24561444"]
[BlackFideId "502081"]
[WhiteElo "1875"]
[BlackElo "2343"]
[Result "0-1"]
[Round "11"]
[TimeControl "180+1"]
[Date "2022.02.23"]
[WhiteClock "0:01:38"]
[BlackClock "0:00:36"]

1. e4 {[%clk 0:03:00]}  c5 {[%clk 0:02:59]} 2. Nf3 {[%clk 0:03:00]}  Nc6 {[%clk 0:02:59]} 3. Bb5 {[%clk 0:02:58]}  g6 {[%clk 0:02:57]} 4. Bxc6 {[%clk 0:02:56]}  dxc6 {[%clk 0:02:57]} 5. d3 {[%clk 0:02:56]}  Bg7 {[%clk 0:02:57]} 6. h3 {[%clk 0:02:57]}  e5 {[%clk 0:02:57]} 7. Be3 {[%clk 0:02:54]}  b6 {[%clk 0:02:57]} 8. a4 {[%clk 0:02:55]}  a5 {[%clk 0:02:54]} 9. Na3 {[%clk 0:02:53]}  Ba6 {[%clk 0:02:49]} 10. Nd2 {[%clk 0:02:53]}  Nf6 {[%clk 0:02:43]} 11. O-O {[%clk 0:02:50]}  Nd7 {[%clk 0:02:42]} 12. Nac4 {[%clk 0:02:49]}  O-O {[%clk 0:02:40]} 13. f4 {[%clk 0:02:48]}  exf4 {[%clk 0:02:34]} 14. Bxf4 {[%clk 0:02:48]}  b5 {[%clk 0:02:25]} 15. axb5 {[%clk 0:02:45]}  cxb5 {[%clk 0:02:18]} 16. Nxa5 {[%clk 0:02:45]}  Bxb2 {[%clk 0:02:09]} 17. Rb1 {[%clk 0:02:38]}  Bd4+ {[%clk 0:02:08]} 18. Kh1 {[%clk 0:02:37]}  Qxa5 {[%clk 0:02:08]} 19. Qf3 {[%clk 0:02:31]}  Be5 {[%clk 0:01:51]} 20. Bh6 {[%clk 0:02:28]}  Bg7 {[%clk 0:01:51]} 21. Bf4 {[%clk 0:02:28]}  Ne5 {[%clk 0:01:49]} 22. Qg3 {[%clk 0:02:29]}  Rae8 {[%clk 0:01:46]} 23. Ra1 {[%clk 0:02:23]}  Qb6 {[%clk 0:01:46]} 24. Nb3 {[%clk 0:02:23]}  Bb7 {[%clk 0:01:45]} 25. Nd2 {[%clk 0:02:15]}  Re6 {[%clk 0:01:43]} 26. Rf2 {[%clk 0:02:14]}  Rfe8 {[%clk 0:01:43]} 27. Raf1 {[%clk 0:02:14]}  Rf8 {[%clk 0:01:26]} 28. Qe3 {[%clk 0:02:13]}  Nd7 {[%clk 0:01:21]} 29. Bg5 {[%clk 0:02:10]}  c4 {[%clk 0:01:16]} 30. Qf3 {[%clk 0:02:09]}  cxd3 {[%clk 0:01:14]} 31. cxd3 {[%clk 0:02:09]}  h6 {[%clk 0:01:01]} 32. Be3 {[%clk 0:01:53]}  Qc6 {[%clk 0:00:59]} 33. Nb3 {[%clk 0:01:46]}  Qc3 {[%clk 0:00:50]} 34. Na5 {[%clk 0:01:46]}  Qxa5 {[%clk 0:00:50]} 35. Qg4 {[%clk 0:01:46]}  Ne5 {[%clk 0:00:48]} 36. Qg3 {[%clk 0:01:46]}  Nxd3 {[%clk 0:00:46]} 37. Rd2 {[%clk 0:01:45]}  Bxe4 {[%clk 0:00:45]} 38. Rfd1 {[%clk 0:01:42]}  Qc3 {[%clk 0:00:43]} 39. Bg1 {[%clk 0:01:38]}  Nb2 {[%clk 0:00:36]} 0-1


[Site "https://www.chess.com"]

[Event "Titled Tuesday Blitz February 22 Late 2022"]
[White "Martinez Alcantara, Jose Eduardo"]
[Black "Terry, Renato"]
[WhiteFideId "3805662"]
[BlackFideId "3803457"]
[WhiteElo "2690"]
[BlackElo "2577"]
[Result "1-0"]
[Round "11"]
[TimeControl "180+1"]
[Date "2022.02.22"]
[WhiteClock "0:00:32"]
[BlackClock "0:00:01"]

1. c4 {[%clk 0:03:00]}  b6 {[%clk 0:02:59]} 2. Nc3 {[%clk 0:02:59]}  Bb7 {[%clk 0:02:59]} 3. d4 {[%clk 0:03:00]}  e6 {[%clk 0:02:57]} 4. a3 {[%clk 0:03:00]}  f5 {[%clk 0:02:53]} 5. d5 {[%clk 0:02:59]}  Nf6 {[%clk 0:02:53]} 6. g3 {[%clk 0:02:59]}  e5 {[%clk 0:02:46]} 7. Bg2 {[%clk 0:02:59]}  a5 {[%clk 0:02:47]} 8. e4 {[%clk 0:02:58]}  fxe4 {[%clk 0:02:42]} 9. Nxe4 {[%clk 0:02:59]}  Na6 {[%clk 0:02:42]} 10. Bg5 {[%clk 0:02:54]}  d6 {[%clk 0:02:20]} 11. Bxf6 {[%clk 0:02:45]}  gxf6 {[%clk 0:02:21]} 12. Qh5+ {[%clk 0:02:45]}  Ke7 {[%clk 0:02:21]} 13. f4 {[%clk 0:02:18]}  Qe8 {[%clk 0:02:02]} 14. Qe2 {[%clk 0:02:18]}  Bg7 {[%clk 0:01:56]} 15. Bh3 {[%clk 0:02:13]}  Qg6 {[%clk 0:01:51]} 16. Nf3 {[%clk 0:02:06]}  Qh5 {[%clk 0:01:48]} 17. Nh4 {[%clk 0:01:57]}  Qxe2+ {[%clk 0:01:47]} 18. Kxe2 {[%clk 0:01:58]}  exf4 {[%clk 0:01:16]} 19. Be6 {[%clk 0:01:44]}  Rae8 {[%clk 0:01:05]} 20. gxf4 {[%clk 0:01:39]}  Kf8 {[%clk 0:01:05]} 21. f5 {[%clk 0:01:34]}  Nc5 {[%clk 0:01:05]} 22. Nxc5 {[%clk 0:01:33]}  dxc5 {[%clk 0:01:00]} 23. b4 {[%clk 0:01:26]}  cxb4 {[%clk 0:00:48]} 24. axb4 {[%clk 0:01:27]}  axb4 {[%clk 0:00:49]} 25. Ra7 {[%clk 0:01:27]}  Rb8 {[%clk 0:00:49]} 26. Nf3 {[%clk 0:01:11]}  Bh6 {[%clk 0:00:46]} 27. Rb1 {[%clk 0:01:05]}  Bf4 {[%clk 0:00:45]} 28. Rxb4 {[%clk 0:01:03]}  Bd6 {[%clk 0:00:45]} 29. Rb1 {[%clk 0:01:02]}  h5 {[%clk 0:00:35]} 30. Rg1 {[%clk 0:00:58]}  Bf4 {[%clk 0:00:18]} 31. Rg6 {[%clk 0:00:55]}  Ke7 {[%clk 0:00:15]} 32. Kd3 {[%clk 0:00:46]}  Rhf8 {[%clk 0:00:10]} 33. Ke4 {[%clk 0:00:45]}  Bd6 {[%clk 0:00:04]} 34. Rg7+ {[%clk 0:00:44]}  Ke8 {[%clk 0:00:04]} 35. h3 {[%clk 0:00:35]}  Rh8 {[%clk 0:00:04]} 36. Nd4 {[%clk 0:00:32]}  h4 {[%clk 0:00:02]} 37. Nb5 {[%clk 0:00:31]}  Kf8 {[%clk 0:00:01]} 38. Rf7+ {[%clk 0:00:32]} 1-0


[Site "https://www.chess.com"]

[Event "Titled Tuesday Blitz February 22 Late 2022"]
[White "Martirosyan, Haik M."]
[Black "Holt, Conrad"]
[WhiteFideId "13306553"]
[BlackFideId "2034387"]
[WhiteElo "2735"]
[BlackElo "2586"]
[Result "1-0"]
[Round "11"]
[TimeControl "180+1"]
[Date "2022.02.22"]
[WhiteClock "0:00:49"]
[BlackClock "0:00:02"]

1. e4 {[%clk 0:03:00]}  e6 {[%clk 0:03:00]} 2. Qe2 {[%clk 0:02:59]}  c5 {[%clk 0:02:57]} 3. Nf3 {[%clk 0:02:58]}  Nc6 {[%clk 0:02:57]} 4. g3 {[%clk 0:02:59]}  g6 {[%clk 0:02:54]} 5. Bg2 {[%clk 0:02:58]}  Bg7 {[%clk 0:02:55]} 6. O-O {[%clk 0:02:58]}  Nge7 {[%clk 0:02:54]} 7. d3 {[%clk 0:02:55]}  O-O {[%clk 0:02:49]} 8. h4 {[%clk 0:02:54]}  e5 {[%clk 0:02:37]} 9. h5 {[%clk 0:02:47]}  d5 {[%clk 0:02:36]} 10. hxg6 {[%clk 0:02:45]}  hxg6 {[%clk 0:02:34]} 11. exd5 {[%clk 0:02:41]}  Nxd5 {[%clk 0:02:34]} 12. Nc3 {[%clk 0:02:41]}  Bg4 {[%clk 0:02:29]} 13. Nxd5 {[%clk 0:02:35]}  Qxd5 {[%clk 0:02:28]} 14. Qe3 {[%clk 0:02:19]}  Qd7 {[%clk 0:02:08]} 15. Bd2 {[%clk 0:02:09]}  Rac8 {[%clk 0:01:50]} 16. Rfe1 {[%clk 0:02:05]}  Rfe8 {[%clk 0:01:47]} 17. Qg5 {[%clk 0:02:01]}  e4 {[%clk 0:01:38]} 18. dxe4 {[%clk 0:01:55]}  Bxb2 {[%clk 0:01:21]} 19. Rab1 {[%clk 0:01:55]}  Bg7 {[%clk 0:01:12]} 20. e5 {[%clk 0:01:49]}  b6 {[%clk 0:01:01]} 21. Bf4 {[%clk 0:01:45]}  Qf5 {[%clk 0:00:36]} 22. Qh4 {[%clk 0:01:37]}  Bxf3 {[%clk 0:00:31]} 23. Bxf3 {[%clk 0:01:37]}  Nd4 {[%clk 0:00:15]} 24. Bg4 {[%clk 0:01:28]}  Qxc2 {[%clk 0:00:15]} 25. Rbd1 {[%clk 0:01:14]}  Rcd8 {[%clk 0:00:13]} 26. Bg5 {[%clk 0:01:05]}  Rd5 {[%clk 0:00:11]} 27. Bf6 {[%clk 0:01:04]}  Qxa2 {[%clk 0:00:10]} 28. Kg2 {[%clk 0:00:57]}  Nf5 {[%clk 0:00:08]} 29. Bxf5 {[%clk 0:00:53]}  Rxd1 {[%clk 0:00:08]} 30. Rxd1 {[%clk 0:00:53]}  Bxf6 {[%clk 0:00:06]} 31. exf6 {[%clk 0:00:52]}  Qe2 {[%clk 0:00:02]} 32. Qh6 {[%clk 0:00:49]} 1-0


[Site "https://www.chess.com"]

[Event "Titled Tuesday Blitz February 22 Late 2022"]
[White "Romanchuk, Viktor"]
[Black "Medeiros Jr, Francisco De Assis"]
[WhiteFideId "14109271"]
[BlackFideId "2114267"]
[WhiteElo "2242"]
[BlackElo "1998"]
[Result "1/2-1/2"]
[Round "11"]
[TimeControl "180+1"]
[Date "2022.02.23"]
[WhiteClock "0:01:27"]
[BlackClock "0:00:56"]

1. d4 {[%clk 0:03:00]}  d5 {[%clk 0:02:59]} 2. c4 {[%clk 0:03:00]}  e6 {[%clk 0:02:59]} 3. Nc3 {[%clk 0:03:00]}  a6 {[%clk 0:02:59]} 4. cxd5 {[%clk 0:02:56]}  exd5 {[%clk 0:03:00]} 5. Nf3 {[%clk 0:02:56]}  Nf6 {[%clk 0:03:00]} 6. Bf4 {[%clk 0:02:56]}  Bd6 {[%clk 0:02:57]} 7. Bg3 {[%clk 0:02:56]}  c6 {[%clk 0:02:48]} 8. Qc2 {[%clk 0:02:56]}  O-O {[%clk 0:02:46]} 9. e3 {[%clk 0:02:55]}  Re8 {[%clk 0:02:46]} 10. Bd3 {[%clk 0:02:55]}  Be6 {[%clk 0:02:39]} 11. O-O {[%clk 0:02:49]}  Qc7 {[%clk 0:02:32]} 12. Rab1 {[%clk 0:02:39]}  Nbd7 {[%clk 0:02:30]} 13. Rfc1 {[%clk 0:02:38]}  Bg4 {[%clk 0:02:30]} 14. Nd2 {[%clk 0:02:33]}  Bh5 {[%clk 0:02:30]} 15. b4 {[%clk 0:02:26]}  Bg6 {[%clk 0:02:26]} 16. a4 {[%clk 0:02:25]}  Rac8 {[%clk 0:02:09]} 17. Bxg6 {[%clk 0:02:01]}  hxg6 {[%clk 0:02:08]} 18. Qd3 {[%clk 0:02:02]}  Bxg3 {[%clk 0:02:00]} 19. hxg3 {[%clk 0:02:00]}  Qd6 {[%clk 0:01:50]} 20. b5 {[%clk 0:01:57]}  axb5 {[%clk 0:01:50]} 21. axb5 {[%clk 0:01:58]}  c5 {[%clk 0:01:49]} 22. dxc5 {[%clk 0:01:56]}  Nxc5 {[%clk 0:01:50]} 23. Qd4 {[%clk 0:01:50]}  Ne6 {[%clk 0:01:46]} 24. Qh4 {[%clk 0:01:47]}  d4 {[%clk 0:01:43]} 25. exd4 {[%clk 0:01:46]}  Nxd4 {[%clk 0:01:43]} 26. Nf3 {[%clk 0:01:44]}  Rxc3 {[%clk 0:01:34]} 27. Qxd4 {[%clk 0:01:41]}  Qxd4 {[%clk 0:01:21]} 28. Nxd4 {[%clk 0:01:39]}  Rd3 {[%clk 0:01:20]} 29. Nf3 {[%clk 0:01:36]}  Nd5 {[%clk 0:01:08]} 30. Rd1 {[%clk 0:01:27]}  Rxd1+ {[%clk 0:01:01]} 31. Rxd1 {[%clk 0:01:28]}  Nc3 {[%clk 0:01:02]} 32. Rd7 {[%clk 0:01:28]}  Nxb5 {[%clk 0:01:01]} 33. Rxb7 {[%clk 0:01:27]}  Nd6 {[%clk 0:00:56]} 1/2-1/2


[Site "https://www.chess.com"]